[Event "47th GRE-chT 2019"]
[Site "Patra"]
[Date "2019.07.03"]
[Round "3.4"]
[White "Kalogridakis, Georgios"]
[Black "Souleidis, Georgios"]
[Result "0-1"]
[ECO "B07"]
[WhiteElo "2134"]
[BlackElo "2426"]
[Annotator "NA"]
[PlyCount "60"]
[EventDate "2019.07.02"]
[EventCountry "GRE"]
[SourceTitle "playchess.com"]
[Source "ChessBase"]
[SourceQuality "1"]
[TimeControl "5400+30"]

1. e4 {[%emt 0:00:00]} g6 {[%emt 0:02:57]} 2. d4 {[%emt 0:00:00]} Bg7 {[%emt 0:00:05]} 3. Nc3 {[%emt 0:00:00]} d6 {[%emt 0:01:56]} 4. g3 {[%emt 0:01:05]} Nd7 {[%emt 0:00:04]} 5. Bg2 {[%emt 0:02:09]} Ngf6 {[%emt 0:00:42]} 6. Nge2 {[%emt 0:00:07]} c5 {[%emt 0:00:09]} 7. h3 {[%emt 0:01:15]} Rb8 {[%emt 0:02:09]} 8. a4 {[%emt 0:00:44]} b6 {[%emt 0:00:26]} 9. O-O {[%emt 0:00:05]} O-O {[%emt 0:00:06]} 10. Be3 {[%emt 0:00:18]} a6 {[%emt 0:12:28]} 11. g4 {[%emt 0:02:45]} cxd4 {[%emt 0:00:41]} 12. Bxd4 {[%emt 0:00:31]} Bb7 {[%emt 0:03:54]} 13. Ng3 {[%emt 0:05:45]} h6 {[%emt 0:08:47]} 14. Nd5 {[%emt 0:08:34]} e5 {[%emt 0:12:43]} 15. Be3 {[%emt 0:03:51]} Nxd5 {[%emt 0:00:05]} 16. exd5 {[%emt 0:10:52]} Qh4 {[%emt 0:09:55]} 17. Kh2 {[%emt 0:12:39]} Rbc8 {[%emt 0:13:22]} 18. Qe2 {[%emt 0:11:37]} Rce8 {[%emt 0:17:09]} 19. Be4 {[%emt 0:12:43]} Nc5 {[%emt 0:01:37]} 20. f3 {[%emt 0:01:30]} a5 {[%emt 0:08:57]} 21. Rg1 {[%emt 0:02:01]} Ba6 {[%emt 0:00:55]} 22. Qg2 {[%emt 0:01:43]} Kh8 {[%emt 0:01:17]} 23. c3 {[%emt 0:03:08]} Bc8 {[%emt 0:00:31]} 24. Qc2 {[%emt 0:11:22]} h5 {[%emt 0:00:33]} 25. Nf1 {[%emt 0:00:34]} hxg4 {[%emt 0:00:30]} 26. fxg4 {[%emt 0:01:11]} f5 {[%emt 0:00:28]} 27. Bxc5 {[%emt 0:01:05]} bxc5 {[%emt 0:00:32]} 28. Bf3 {[%emt 0:00:13]} e4 {[%emt 0:00:30]} 29. Be2 {[%emt 0:00:25]} fxg4 {[%emt 0:00:31]} 30. Rg3 {[%emt 0:01:37]} Be5 {[%emt 0:00:32]} 0-1

[Event "47th GRE-chT 2019"]
[Site "Patra"]
[Date "2019.07.03"]
[Round "3.5"]
[White "Daulyte-Cornette, Deimante"]
[Black "Stefanidi, Maria-Anna"]
[Result "1-0"]
[ECO "B53"]
[WhiteElo "2444"]
[BlackElo "2001"]
[Annotator "NA"]
[PlyCount "87"]
[EventDate "2019.07.02"]
[EventCountry "GRE"]
[SourceTitle "playchess.com"]
[Source "ChessBase"]
[SourceQuality "1"]
[TimeControl "5400+30"]

1. e4 {[%emt 0:00:00]} c5 {[%emt 0:03:13]} 2. Nf3 {[%emt 0:00:00]} d6 {[%emt 0:00:05]} 3. d4 {[%emt 0:00:04]} cxd4 {[%emt 0:00:07]} 4. Qxd4 {[%emt 0:00:07]} a6 {[%emt 0:00:05]} 5. h3 {[%emt 0:00:23]} Nf6 {[%emt 0:00:21]} 6. c4 {[%emt 0:01:08]} g6 {[%emt 0:02:25]} 7. Be2 {[%emt 0:01:45]} Bg7 {[%emt 0:00:07]} 8. O-O {[%emt 0:01:23]} O-O {[%emt 0:00:08]} 9. Qe3 {[%emt 0:05:07]} Bd7 {[%emt 0:09:56]} 10. Nc3 {[%emt 0:02:41]} Bc6 {[%emt 0:05:43]} 11. Rb1 {[%emt 0:08:34]} Nbd7 {[%emt 0:07:55]} 12. b4 {[%emt 0:03:00]} b6 {[%emt 0:00:45]} 13. Bb2 {[%emt 0:05:18]} Rc8 {[%emt 0:03:24]} 14. Rfd1 {[%emt 0:01:49]} Re8 {[%emt 0:06:06]} 15. Ba1 {[%emt 0:11:58]} Bb7 {[%emt 0:04:20]} 16. Rbc1 {[%emt 0:01:02]} Qc7 {[%emt 0:07:11]} 17. Nd5 {[%emt 0:02:31]} Qb8 {[%emt 0:06:19]} 18. Bd3 {[%emt 0:15:50]} Qa8 {[%emt 0:08:19]} 19. Re1 {[%emt 0:02:52]} Nxd5 {[%emt 0:02:45]} 20. exd5 {[%emt 0:06:24]} e5 {[%emt 0:01:00]} 21. Ng5 {[%emt 0:04:54]} b5 {[%emt 0:04:12]} 22. Ne4 {[%emt 0:03:16]} bxc4 {[%emt 0:01:31]} 23. Rxc4 {[%emt 0:03:26]} Bf8 {[%emt 0:02:12]} 24. Nc3 {[%emt 0:08:08]} Bxd5 {[%emt 0:10:14]} 25. Nxd5 {[%emt 0:01:04]} Qxd5 {[%emt 0:00:08]} 26. Rxc8 {[%emt 0:00:27]} Rxc8 {[%emt 0:00:06]} 27. Bxa6 {[%emt 0:00:21]} Ra8 {[%emt 0:00:06]} 28. Qe2 {[%emt 0:01:14]} Nb6 {[%emt 0:03:07]} 29. Rd1 {[%emt 0:03:51]} Qc6 {[%emt 0:01:08]} 30. Bb5 {[%emt 0:02:26]} Qb7 {[%emt 0:00:53]} 31. Rc1 {[%emt 0:01:04]} Rd8 {[%emt 0:02:40]} 32. a4 {[%emt 0:00:30]} Bh6 {[%emt 0:05:52]} 33. Rd1 {[%emt 0:00:50]} f6 {[%emt 0:00:46]} 34. a5 {[%emt 0:00:43]} Na8 {[%emt 0:00:18]} 35. Qc4+ {[%emt 0:00:54]} Kg7 {[%emt 0:00:33]} 36. Bc6 {[%emt 0:00:29]} Qb8 {[%emt 0:01:46]} 37. b5 {[%emt 0:00:37]} Rc8 {[%emt 0:01:12]} 38. Qe6 {[%emt 0:01:04]} Rd8 {[%emt 0:01:05]} 39. b6 {[%emt 0:01:09]} Nxb6 {[%emt 0:00:26]} 40. axb6 {[%emt 0:00:00]} Qxb6 {[%emt 0:00:00]} 41. Qe7+ {[%emt 0:00:00]} Kh8 {[%emt 0:00:00]} 42. Qxf6+ {[%emt 0:00:00]} Bg7 {[%emt 0:00:00]} 43. Qe7 {[%emt 0:00:00]} Rf8 {[%emt 0:00:00]} 44. Bf3 {[%emt 0:00:00]} 1-0

[Event "47th GRE-chT 2019"]
[Site "Patra"]
[Date "2019.07.03"]
[Round "3.5"]
[White "Stoumbou, Eleni"]
[Black "Grapsa, Georgia"]
[Result "0-1"]
[ECO "B90"]
[WhiteElo "1820"]
[BlackElo "2038"]
[Annotator "NA"]
[PlyCount "75"]
[EventDate "2019.07.02"]
[EventCountry "GRE"]
[SourceTitle "playchess.com"]
[Source "ChessBase"]
[SourceQuality "1"]
[TimeControl "5400+30"]

1. e4 {[%emt 0:00:00]} c5 {[%emt 0:00:00]} 2. Nf3 {[%emt 0:00:00]} d6 {[%emt 0:00:00]} 3. d4 {[%emt 0:00:02]} cxd4 {[%emt 0:00:00]} 4. Nxd4 {[%emt 0:00:09]} Nf6 {[%emt 0:00:00]} 5. Nc3 {[%emt 0:00:13]} a6 {[%emt 0:00:02]} 6. h3 {[%emt 0:00:19]} e5 {[%emt 0:00:05]} 7. Nde2 {[%emt 0:00:23]} h5 {[%emt 0:00:07]} 8. g3 {[%emt 0:01:03]} Nbd7 {[%emt 0:00:14]} 9. Bg2 {[%emt 0:12:01]} b5 {[%emt 0:00:28]} 10. Nd5 {[%emt 0:01:52]} Nxd5 {[%emt 0:00:48]} 11. exd5 {[%emt 0:10:15]} Be7 {[%emt 0:00:42]} 12. O-O {[%emt 0:01:16]} h4 {[%emt 0:09:03]} 13. g4 {[%emt 0:04:28]} O-O {[%emt 0:02:21]} 14. a4 {[%emt 0:06:59]} Bb7 {[%emt 0:09:08]} 15. axb5 {[%emt 0:12:21]} axb5 {[%emt 0:00:08]} 16. Rxa8 {[%emt 0:00:05]} Qxa8 {[%emt 0:01:13]} 17. Qd3 {[%emt 0:03:04]} Nc5 {[%emt 0:07:03]} 18. Qd1 {[%emt 0:10:24]} b4 {[%emt 0:15:08]} 19. Be3 {[%emt 0:08:26]} Rc8 {[%emt 0:22:16]} 20. Qd2 {[%emt 0:08:31]} Qa2 {[%emt 0:11:18]} 21. c3 {[%emt 0:05:34]} Nb3 {[%emt 0:05:23]} 22. Qc2 {[%emt 0:01:41]} Na5 {[%emt 0:01:22]} 23. Rd1 {[%emt 0:07:44]} Nc4 {[%emt 0:01:22]} 24. Bc1 {[%emt 0:01:13]} Nb6 {[%emt 0:02:28]} 25. Qf5 {[%emt 0:02:10]} g6 {[%emt 0:00:13]} 26. Qd3 {[%emt 0:00:40]} Ba6 {[%emt 0:00:29]} 27. Qe3 {[%emt 0:01:19]} Bxe2 {[%emt 0:01:29]} 28. Qxe2 {[%emt 0:00:04]} bxc3 {[%emt 0:00:14]} 29. Kf1 {[%emt 0:01:26]} c2 {[%emt 0:01:07]} 30. Rd3 {[%emt 0:00:30]} Qb1 {[%emt 0:01:23]} 31. Qd2 {[%emt 0:00:24]} Nc4 {[%emt 0:00:57]} 32. Qh6 {[%emt 0:00:44]} Bf8 {[%emt 0:00:21]} 33. Qg5 {[%emt 0:00:32]} Bg7 {[%emt 0:02:14]} 34. Ke2 {[%emt 0:00:36]} f6 {[%emt 0:00:31]} 35. Qxg6 {[%emt 0:00:26]} Qxc1 {[%emt 0:00:24]} 36. Be4 {[%emt 0:00:30]} Qh6 {[%emt 0:01:23]} 37. Qf5 {[%emt 0:00:16]} c1=N+ {[%emt 0:00:28]} 38. Kf1 0-1

[Event "47th GRE-chT 2019"]
[Site "Patra"]
[Date "2019.07.03"]
[Round "3.6"]
[White "Petraki, Evaggelia"]
[Black "Grammatikaki, Aggeliki"]
[Result "0-1"]
[ECO "B44"]
[WhiteElo "1785"]
[BlackElo "1672"]
[Annotator "NA"]
[PlyCount "56"]
[EventDate "2019.07.02"]
[EventCountry "GRE"]
[SourceTitle "playchess.com"]
[Source "ChessBase"]
[SourceQuality "1"]
[TimeControl "5400+30"]

1. e4 {[%emt 0:00:00]} c5 {[%emt 0:00:04]} 2. Nf3 {[%emt 0:00:00]} e6 {[%emt 0:00:06]} 3. d4 {[%emt 0:00:00]} cxd4 {[%emt 0:00:04]} 4. Nxd4 {[%emt 0:00:00]} Nc6 {[%emt 0:00:08]} 5. Nb5 {[%emt 0:00:00]} d6 {[%emt 0:00:13]} 6. c4 {[%emt 0:00:00]} Nf6 {[%emt 0:00:48]} 7. N1c3 {[%emt 0:00:00]} Be7 {[%emt 0:00:55]} 8. Bf4 {[%emt 0:03:43]} e5 {[%emt 0:02:25]} 9. Bg5 {[%emt 0:00:12]} a6 {[%emt 0:11:30]} 10. Bxf6 {[%emt 0:00:25]} gxf6 {[%emt 0:00:06]} 11. Na3 {[%emt 0:00:06]} f5 {[%emt 0:07:58]} 12. Bd3 {[%emt 0:13:48]} f4 {[%emt 0:12:58]} 13. Qd2 {[%emt 0:05:06]} Rg8 {[%emt 0:12:05]} 14. Rd1 {[%emt 0:07:30]} Rxg2 {[%emt 0:06:06]} 15. Bf1 {[%emt 0:00:06]} Rg6 {[%emt 0:06:17]} 16. Nc2 {[%emt 0:05:36]} Bg4 {[%emt 0:07:44]} 17. Be2 {[%emt 0:02:42]} Bxe2 {[%emt 0:04:59]} 18. Qxe2 {[%emt 0:02:43]} Rc8 {[%emt 0:02:31]} 19. Qd3 {[%emt 0:18:20]} Qd7 {[%emt 0:05:15]} 20. Nd5 {[%emt 0:06:20]} Qg4 {[%emt 0:09:49]} 21. Nxe7 {[%emt 0:02:34]} Kxe7 {[%emt 0:01:17]} 22. Rf1 {[%emt 0:06:40]} Qg2 {[%emt 0:03:02]} 23. c5 {[%emt 0:02:13]} Rd8 {[%emt 0:00:38]} 24. Qb3 {[%emt 0:00:31]} Qxe4+ {[%emt 0:00:35]} 25. Kd2 {[%emt 0:01:27]} dxc5+ {[%emt 0:00:08]} 26. Kc1 {[%emt 0:00:05]} Rxd1+ {[%emt 0:00:48]} 27. Rxd1 {[%emt 0:00:07]} Nd4 {[%emt 0:00:44]} 28. Qc3 {[%emt 0:02:24]} Ne2+ {[%emt 0:00:15]} 0-1

[Event "47th GRE-chT 2019"]
[Site "Patra"]
[Date "2019.07.03"]
[Round "3.6"]
[White "Zarkada, Athina"]
[Black "Kalyva, Kyriaki"]
[Result "1-0"]
[ECO "B33"]
[WhiteElo "1096"]
[BlackElo "1869"]
[Annotator "NA"]
[PlyCount "81"]
[EventDate "2019.07.02"]
[EventCountry "GRE"]
[SourceTitle "playchess.com"]
[Source "ChessBase"]
[SourceQuality "1"]
[TimeControl "5400+30"]

1. e4 {[%emt 0:00:00]} c5 {[%emt 0:02:11]} 2. Nf3 {[%emt 0:00:00]} Nc6 {[%emt 0:00:14]} 3. d4 {[%emt 0:00:00]} cxd4 {[%emt 0:00:13]} 4. Nxd4 {[%emt 0:00:03]} Nf6 {[%emt 0:00:09]} 5. Nc3 {[%emt 0:00:06]} e5 {[%emt 0:00:12]} 6. Ndb5 {[%emt 0:00:07]} d6 {[%emt 0:00:25]} 7. Bg5 {[%emt 0:00:06]} a6 {[%emt 0:00:09]} 8. Na3 {[%emt 0:00:08]} b5 {[%emt 0:00:11]} 9. Nd5 {[%emt 0:00:08]} Be7 {[%emt 0:00:10]} 10. Bxf6 {[%emt 0:00:06]} Bxf6 {[%emt 0:00:30]} 11. c3 {[%emt 0:00:11]} O-O {[%emt 0:00:19]} 12. Nc2 {[%emt 0:00:14]} Bg5 {[%emt 0:01:13]} 13. a4 {[%emt 0:00:09]} bxa4 {[%emt 0:00:48]} 14. Rxa4 {[%emt 0:00:18]} a5 {[%emt 0:00:47]} 15. Bc4 {[%emt 0:02:04]} Rb8 {[%emt 0:00:08]} 16. b3 {[%emt 0:00:40]} Be6 {[%emt 0:02:20]} 17. Nce3 {[%emt 0:05:55]} Bxe3 {[%emt 0:04:39]} 18. Nxe3 {[%emt 0:18:43]} Ne7 {[%emt 0:10:18]} 19. O-O {[%emt 0:01:15]} Qc7 {[%emt 0:12:10]} 20. Qd3 {[%emt 0:22:54]} Qc5 {[%emt 0:09:28]} 21. Rb1 {[%emt 0:18:23]} Rfd8 {[%emt 0:06:23]} 22. b4 {[%emt 0:00:36]} axb4 {[%emt 0:04:33]} 23. cxb4 {[%emt 0:05:33]} Qd4 {[%emt 0:09:00]} 24. b5 {[%emt 0:08:53]} Qc5 {[%emt 0:14:18]} 25. Qa3 {[%emt 0:04:50]} Qxa3 {[%emt 0:00:11]} 26. Rxa3 {[%emt 0:00:08]} Nc6 {[%emt 0:03:33]} 27. Nd5 {[%emt 0:06:53]} Rd7 {[%emt 0:02:24]} 28. b6 {[%emt 0:00:58]} Nd8 {[%emt 0:02:09]} 29. Bd3 {[%emt 0:02:05]} Rdb7 {[%emt 0:02:39]} 30. Rab3 {[%emt 0:00:25]} Nc6 {[%emt 0:02:14]} 31. Ba6 {[%emt 0:00:13]} Nd4 {[%emt 0:01:08]} 32. R3b2 {[%emt 0:02:12]} Bxd5 {[%emt 0:00:53]} 33. exd5 {[%emt 0:00:33]} Rd7 {[%emt 0:01:17]} 34. Rc1 {[%emt 0:01:03]} Rdd8 {[%emt 0:00:30]} 35. Rc7 {[%emt 0:00:29]} Ra8 {[%emt 0:01:51]} 36. Ra2 {[%emt 0:00:08]} Nb5 {[%emt 0:04:41]} 37. Rc4 {[%emt 0:01:11]} Nd4 {[%emt 0:00:55]} 38. b7 {[%emt 0:00:02]} Rab8 {[%emt 0:01:54]} 39. Rc8 {[%emt 0:00:08]} Kf8 {[%emt 0:00:00]} 40. Rxd8+ {[%emt 0:00:00]} Rxd8 {[%emt 0:00:00]} 41. Bd3 {[%emt 0:00:00]} 1-0

[Event "47th GRE-chT 2019"]
[Site "Patra"]
[Date "2019.07.03"]
[Round "3.7"]
[White "Kratimenou, Georgia"]
[Black "Tsivelekidou, Anthoula Elpida"]
[Result "1/2-1/2"]
[ECO "C11"]
[WhiteElo "1507"]
[BlackElo "1298"]
[Annotator "NA"]
[PlyCount "88"]
[EventDate "2019.07.02"]
[EventCountry "GRE"]
[SourceTitle "playchess.com"]
[Source "ChessBase"]
[SourceQuality "1"]
[TimeControl "5400+30"]

1. e4 {[%emt 0:00:00]} e6 {[%emt 0:00:00]} 2. d4 {[%emt 0:00:00]} d5 {[%emt 0:00:00]} 3. Nc3 {[%emt 0:00:00]} Nf6 {[%emt 0:00:00]} 4. e5 {[%emt 0:00:04]} Nfd7 {[%emt 0:00:00]} 5. f4 {[%emt 0:01:18]} c5 {[%emt 0:00:00]} 6. Nf3 {[%emt 0:00:08]} Nc6 {[%emt 0:00:06]} 7. Be3 {[%emt 0:01:29]} cxd4 {[%emt 0:01:51]} 8. Nxd4 {[%emt 0:02:13]} Bc5 {[%emt 0:02:02]} 9. Qd2 {[%emt 0:04:54]} Nxd4 {[%emt 0:06:43]} 10. Bxd4 {[%emt 0:03:02]} b6 {[%emt 0:00:52]} 11. Nb5 {[%emt 0:12:38]} O-O {[%emt 0:01:10]} 12. Bxc5 {[%emt 0:01:18]} Nxc5 {[%emt 0:00:24]} 13. Nd6 {[%emt 0:01:01]} Nb7 {[%emt 0:03:14]} 14. Nxc8 {[%emt 0:00:21]} Rxc8 {[%emt 0:00:25]} 15. Bd3 {[%emt 0:00:48]} Nc5 {[%emt 0:00:40]} 16. O-O {[%emt 0:01:00]} Qd7 {[%emt 0:04:42]} 17. Rf3 {[%emt 0:12:09]} Nxd3 {[%emt 0:03:40]} 18. Qxd3 {[%emt 0:02:05]} Rc4 {[%emt 0:01:23]} 19. b3 {[%emt 0:05:03]} Rc5 {[%emt 0:09:59]} 20. Rh3 {[%emt 0:02:24]} g6 {[%emt 0:02:14]} 21. c3 {[%emt 0:12:48]} Rfc8 {[%emt 0:06:11]} 22. Rc1 {[%emt 0:01:33]} b5 {[%emt 0:07:16]} 23. Qd4 {[%emt 0:04:17]} Qc7 {[%emt 0:02:47]} 24. Rf3 {[%emt 0:10:42]} Qb6 {[%emt 0:01:12]} 25. Kf2 {[%emt 0:11:16]} b4 {[%emt 0:03:51]} 26. c4 {[%emt 0:06:56]} dxc4 {[%emt 0:01:00]} 27. bxc4 {[%emt 0:00:07]} Rd8 {[%emt 0:00:38]} 28. Qe3 {[%emt 0:00:37]} Qc6 {[%emt 0:07:02]} 29. Kg3 {[%emt 0:00:22]} a5 {[%emt 0:01:01]} 30. a3 {[%emt 0:02:06]} Rc8 {[%emt 0:05:20]} 31. axb4 {[%emt 0:00:34]} axb4 {[%emt 0:00:12]} 32. Qb3 {[%emt 0:01:57]} Rxc4 {[%emt 0:00:46]} 33. Rxc4 {[%emt 0:00:07]} Qxc4 {[%emt 0:00:05]} 34. Kf2 {[%emt 0:00:49]} Qd4+ {[%emt 0:04:28]} 35. Qe3 {[%emt 0:00:41]} Qb2+ {[%emt 0:05:36]} 36. Kg3 {[%emt 0:00:27]} Rc3 {[%emt 0:06:19]} 37. Qb6 {[%emt 0:00:16]} Rxf3+ {[%emt 0:01:31]} 38. gxf3 {[%emt 0:00:15]} Qd2 {[%emt 0:00:20]} 39. Qb8+ {[%emt 0:00:14]} Kg7 {[%emt 0:00:05]} 40. Qb6 {[%emt 0:00:00]} Qe1+ {[%emt 0:00:00]} 41. Kh3 {[%emt 0:00:00]} Qd2 {[%emt 0:00:00]} 42. Kg3 {[%emt 0:00:00]} Kf8 {[%emt 0:00:00]} 43. Qb8+ {[%emt 0:00:00]} Kg7 {[%emt 0:00:00]} 44. Qb6 {[%emt 0:00:00]} Qe1+ {[%emt 0:00:00]} 1/2-1/2

[Event "47th GRE-chT 2019"]
[Site "Patra"]
[Date "2019.07.03"]
[Round "3.7"]
[White "Kyriakidou, Chrysa"]
[Black "Perakaki, Makrina-Eirini"]
[Result "1-0"]
[ECO "D30"]
[WhiteElo "1338"]
[BlackElo "1161"]
[Annotator "NA"]
[PlyCount "89"]
[EventDate "2019.07.02"]
[EventCountry "GRE"]
[SourceTitle "playchess.com"]
[Source "ChessBase"]
[SourceQuality "1"]
[TimeControl "5400+30"]

1. d4 {[%emt 0:00:00]} d5 {[%emt 0:03:22]} 2. Bf4 {[%emt 0:00:00]} Nf6 {[%emt 0:00:16]} 3. e3 {[%emt 0:00:00]} Nc6 {[%emt 0:00:18]} 4. Nf3 {[%emt 0:00:00]} e6 {[%emt 0:00:23]} 5. c4 {[%emt 0:00:05]} Be7 {[%emt 0:00:40]} 6. Nc3 {[%emt 0:00:07]} O-O {[%emt 0:00:36]} 7. h3 {[%emt 0:00:08]} Bd6 {[%emt 0:01:04]} 8. Bxd6 {[%emt 0:01:07]} Qxd6 {[%emt 0:00:20]} 9. cxd5 {[%emt 0:00:21]} exd5 {[%emt 0:00:20]} 10. Bd3 {[%emt 0:00:12]} Re8 {[%emt 0:01:51]} 11. O-O {[%emt 0:00:09]} Qd8 {[%emt 0:01:33]} 12. Rc1 {[%emt 0:00:33]} Bd7 {[%emt 0:04:15]} 13. a3 {[%emt 0:03:02]} a6 {[%emt 0:05:07]} 14. b4 {[%emt 0:01:37]} b5 {[%emt 0:02:58]} 15. Qb3 {[%emt 0:00:31]} Ne7 {[%emt 0:02:47]} 16. Rc2 {[%emt 0:03:04]} Bf5 {[%emt 0:02:48]} 17. Bxf5 {[%emt 0:00:22]} Nxf5 {[%emt 0:00:09]} 18. Rfc1 {[%emt 0:00:19]} Rc8 {[%emt 0:02:49]} 19. Ne5 {[%emt 0:02:10]} Qd6 {[%emt 0:05:47]} 20. Ne2 {[%emt 0:01:59]} Ne4 {[%emt 0:07:34]} 21. Rc6 {[%emt 0:02:52]} Qd8 {[%emt 0:04:08]} 22. Qc2 {[%emt 0:01:15]} Qh4 {[%emt 0:06:44]} 23. Nc3 {[%emt 0:07:47]} Nxc3 {[%emt 0:06:26]} 24. Qxc3 {[%emt 0:00:13]} Re7 {[%emt 0:01:31]} 25. Qc5 {[%emt 0:03:20]} Qe4 {[%emt 0:03:23]} 26. Qc2 {[%emt 0:04:52]} Qxc2 {[%emt 0:00:55]} 27. R1xc2 {[%emt 0:00:22]} f6 {[%emt 0:02:01]} 28. Nf3 {[%emt 0:00:12]} Nd6 {[%emt 0:01:01]} 29. Rxd6 {[%emt 0:00:08]} Ree8 {[%emt 0:01:37]} 30. Rxd5 {[%emt 0:00:10]} c6 {[%emt 0:02:26]} 31. Rd6 {[%emt 0:00:10]} Ra8 {[%emt 0:00:46]} 32. Rdxc6 {[%emt 0:01:36]} a5 {[%emt 0:00:11]} 33. d5 {[%emt 0:02:19]} axb4 {[%emt 0:01:24]} 34. axb4 {[%emt 0:00:09]} Rad8 {[%emt 0:01:15]} 35. R2c5 {[%emt 0:00:35]} Re7 {[%emt 0:02:01]} 36. d6 {[%emt 0:06:28]} Red7 {[%emt 0:01:20]} 37. Rd5 {[%emt 0:01:07]} Kf7 {[%emt 0:01:35]} 38. Nd4 {[%emt 0:00:18]} Rb8 {[%emt 0:01:01]} 39. Rc7 {[%emt 0:01:05]} Rxc7 {[%emt 0:00:12]} 40. dxc7 {[%emt 0:00:00]} Rc8 {[%emt 0:00:00]} 41. Nxb5 {[%emt 0:00:00]} Ke7 {[%emt 0:00:00]} 42. Kf1 {[%emt 0:00:00]} g6 {[%emt 0:00:00]} 43. Ke2 {[%emt 0:00:00]} h5 {[%emt 0:00:00]} 44. Kd3 {[%emt 0:00:00]} g5 {[%emt 0:00:00]} 45. Kd4 {[%emt 0:00:00]} 1-0

[Event "47th GRE-chT 2019"]
[Site "Patra"]
[Date "2019.07.03"]
[Round "3.8"]
[White "Tsaknakis, Zisis"]
[Black "Michaelides, Konstantinos"]
[Result "1/2-1/2"]
[ECO "A07"]
[WhiteElo "2263"]
[BlackElo "2128"]
[Annotator "NA"]
[PlyCount "85"]
[EventDate "2019.07.02"]
[EventCountry "GRE"]
[SourceTitle "playchess.com"]
[Source "ChessBase"]
[SourceQuality "1"]
[TimeControl "5400+30"]

1. Nf3 {[%emt 0:00:00]} Nf6 {[%emt 0:00:01]} 2. g3 {[%emt 0:00:00]} d5 {[%emt 0:00:30]} 3. Bg2 {[%emt 0:00:00]} c6 {[%emt 0:00:51]} 4. O-O {[%emt 0:00:00]} Bg4 {[%emt 0:00:48]} 5. Ne5 {[%emt 0:00:33]} Bf5 {[%emt 0:00:56]} 6. d4 {[%emt 0:02:56]} e6 {[%emt 0:03:13]} 7. c4 {[%emt 0:00:36]} Nbd7 {[%emt 0:02:39]} 8. Nc3 {[%emt 0:07:54]} Be7 {[%emt 0:06:13]} 9. Nxd7 {[%emt 0:04:21]} Qxd7 {[%emt 0:02:40]} 10. b3 {[%emt 0:00:49]} O-O {[%emt 0:01:44]} 11. Bb2 {[%emt 0:00:02]} Rfd8 {[%emt 0:05:03]} 12. e3 {[%emt 0:03:34]} b5 {[%emt 0:06:17]} 13. Qe2 {[%emt 0:03:20]} bxc4 {[%emt 0:02:47]} 14. bxc4 {[%emt 0:00:20]} Rab8 {[%emt 0:01:10]} 15. Rad1 {[%emt 0:02:35]} Rb4 {[%emt 0:09:45]} 16. c5 {[%emt 0:06:54]} Rdb8 {[%emt 0:02:39]} 17. Rd2 {[%emt 0:01:15]} Qc7 {[%emt 0:05:12]} 18. Rc1 {[%emt 0:01:54]} Qa5 {[%emt 0:07:35]} 19. f3 {[%emt 0:00:44]} Bg6 {[%emt 0:02:30]} 20. Nd1 {[%emt 0:02:45]} R4b7 {[%emt 0:03:37]} 21. Bf1 {[%emt 0:07:17]} Nd7 {[%emt 0:04:14]} 22. Rc3 {[%emt 0:03:37]} e5 {[%emt 0:03:03]} 23. Ra3 {[%emt 0:01:41]} Qc7 {[%emt 0:00:59]} 24. Ra6 {[%emt 0:00:23]} e4 {[%emt 0:02:08]} 25. f4 {[%emt 0:01:55]} f5 {[%emt 0:02:52]} 26. Rc2 {[%emt 0:16:12]} Nf6 {[%emt 0:02:42]} 27. Qd2 {[%emt 0:00:11]} Bh5 {[%emt 0:01:06]} 28. Bc3 {[%emt 0:00:28]} Rb1 {[%emt 0:02:06]} 29. Rc1 {[%emt 0:00:18]} Bf3 {[%emt 0:03:04]} 30. Ba5 {[%emt 0:07:57]} Qd7 {[%emt 0:01:20]} 31. Nc3 {[%emt 0:00:15]} Rxc1 {[%emt 0:06:27]} 32. Qxc1 {[%emt 0:00:01]} Qb7 {[%emt 0:02:17]} 33. a3 {[%emt 0:03:36]} Ng4 {[%emt 0:03:07]} 34. h3 {[%emt 0:00:13]} Nf6 {[%emt 0:00:18]} 35. Na2 {[%emt 0:06:18]} Nd7 {[%emt 0:02:16]} 36. Bd2 {[%emt 0:02:18]} Rf8 {[%emt 0:01:43]} 37. Nb4 {[%emt 0:02:15]} Nb8 {[%emt 0:00:38]} 38. Ra4 {[%emt 0:00:02]} Rf6 {[%emt 0:00:32]} 39. Nc2 {[%emt 0:00:38]} Rg6 {[%emt 0:00:41]} 40. Rb4 {[%emt 0:00:00]} Qc8 {[%emt 0:00:00]} 41. Qb2 {[%emt 0:00:00]} Nd7 {[%emt 0:00:00]} 42. Kh2 {[%emt 0:00:00]} h5 {[%emt 0:00:00]} 43. h4 {[%emt 0:00:00]} 1/2-1/2

[Event "47th GRE-chT 2019"]
[Site "Patra"]
[Date "2019.07.03"]
[Round "3.8"]
[White "Koutis, Pavlos"]
[Black "Androutsopoulos-Agiotatos, Vasil"]
[Result "0-1"]
[ECO "C45"]
[WhiteElo "1569"]
[BlackElo "2063"]
[Annotator "NA"]
[PlyCount "54"]
[EventDate "2019.07.02"]
[EventCountry "GRE"]
[SourceTitle "playchess.com"]
[Source "ChessBase"]
[SourceQuality "1"]
[TimeControl "5400+30"]

1. e4 {[%emt 0:00:00]} e5 {[%emt 0:02:44]} 2. Nf3 {[%emt 0:00:00]} Nc6 {[%emt 0:00:03]} 3. d4 {[%emt 0:00:00]} exd4 {[%emt 0:00:03]} 4. Nxd4 {[%emt 0:00:35]} Qf6 {[%emt 0:02:57]} 5. Nb3 {[%emt 0:07:19]} Qg6 {[%emt 0:08:00]} 6. f3 {[%emt 0:02:09]} Bd6 {[%emt 0:09:00]} 7. g3 {[%emt 0:09:04]} Nge7 {[%emt 0:02:38]} 8. Be3 {[%emt 0:06:56]} f5 {[%emt 0:05:57]} 9. Bd3 {[%emt 0:06:01]} O-O {[%emt 0:01:46]} 10. Nc3 {[%emt 0:02:38]} Bb4 {[%emt 0:06:25]} 11. Bd2 {[%emt 0:07:39]} Ne5 {[%emt 0:06:32]} 12. Qe2 {[%emt 0:01:32]} Kh8 {[%emt 0:02:02]} 13. O-O-O {[%emt 0:03:47]} d6 {[%emt 0:06:45]} 14. exf5 {[%emt 0:04:38]} Nxd3+ {[%emt 0:01:38]} 15. cxd3 {[%emt 0:00:16]} Nxf5 {[%emt 0:00:04]} 16. g4 {[%emt 0:03:59]} Nh6 {[%emt 0:07:37]} 17. h4 {[%emt 0:11:22]} Be6 {[%emt 0:05:36]} 18. h5 {[%emt 0:05:00]} Qf7 {[%emt 0:07:56]} 19. g5 {[%emt 0:03:21]} Bxb3 {[%emt 0:13:26]} 20. axb3 {[%emt 0:00:27]} Nf5 {[%emt 0:00:39]} 21. g6 {[%emt 0:03:36]} Qe8 {[%emt 0:08:04]} 22. Qf2 {[%emt 0:02:02]} Bc5 {[%emt 0:00:37]} 23. Qg2 {[%emt 0:00:14]} h6 {[%emt 0:00:08]} 24. Rde1 {[%emt 0:00:46]} Qc6 {[%emt 0:00:46]} 25. Qg4 {[%emt 0:04:59]} Qa6 {[%emt 0:00:34]} 26. Kc2 {[%emt 0:00:17]} Nd4+ {[%emt 0:00:17]} 27. Kb1 {[%emt 0:00:09]} Qxd3+ {[%emt 3:09:54]} 0-1